Workbook

Sheet Event
B1: Hole # | C1: =Courses!C1 -> 1 | D1: =Courses!D1 -> 2 | E1: =Courses!E1 -> 3 | F1: =Courses!F1 -> 4 | G1: =Courses!G1 -> 5 | H1: =Courses!H1 -> 6 | I1: =Courses!I1 -> 7 | J1: =Courses!J1 -> 8 | K1: =Courses!K1 -> 9 | L1: (Out) | M1: =Courses!M1 -> 10 | N1: =Courses!N1 -> 11 | O1: =Courses!O1 -> 12 | P1: =Courses!P1 -> 13 | Q1: =Courses!P1 -> 13 | R1: =Courses!R1 -> 15 | S1: =Courses!S1 -> 16 | T1: =Courses!T1 -> 17 | U1: =Courses!U1 -> 18 | V1: (In) | W1: Total
B2: Yardage | C2: =Courses!C3 -> 395 | D2: =Courses!D3 -> 145 | E2: =Courses!E3 -> 488 | F2: =Courses!F3 -> 352 | G2: =Courses!G3 -> 377 | H2: =Courses!H3 -> 147 | I2: =Courses!I3 -> 343 | J2: =Courses!J3 -> 462 | K2: =Courses!K3 -> 371 | L2: =Courses!L3 -> 3080 | M2: =Courses!M3 -> 392 | N2: =Courses!N3 -> 463 | O2: =Courses!O3 -> 365 | P2: =Courses!P3 -> 359 | Q2: =Courses!Q3 -> 137 | R2: =Courses!R3 -> 417 | S2: =Courses!S3 -> 162 | T2: =Courses!T3 -> 385 | U2: =Courses!U3 -> 439 | V2: =Courses!V3 -> 3119 | W2: =Courses!W3 -> 6199
B3: Par | C3: =Courses!C4 -> 4 | D3: =Courses!D4 -> 3 | E3: =Courses!E4 -> 5 | F3: =Courses!F4 -> 4 | G3: =Courses!G4 -> 4 | H3: =Courses!H4 -> 3 | I3: =Courses!I4 -> 4 | J3: =Courses!J4 -> 5 | K3: =Courses!K4 -> 4 | L3: =Courses!L4 -> 36 | M3: =Courses!M4 -> 4 | N3: =Courses!N4 -> 5 | O3: =Courses!O4 -> 4 | P3: =Courses!P4 -> 4 | Q3: =Courses!Q4 -> 3 | R3: =Courses!R4 -> 4 | S3: =Courses!S4 -> 3 | T3: =Courses!T4 -> 4 | U3: =Courses!U4 -> 5 | V3: =Courses!V4 -> 36 | W3: =Courses!W4 -> 72
A4: Player | B4: Hdcp | C4: =Courses!C5 -> 9 | D4: =Courses!D5 -> 13 | E4: =Courses!E5 -> 15 | F4: =Courses!F5 -> 1 | G4: =Courses!G5 -> 3 | H4: =Courses!H5 -> 11 | I4: =Courses!I5 -> 7 | J4: =Courses!J5 -> 17 | K4: =Courses!K5 -> 5 | M4: =Courses!M5 -> 4 | N4: =Courses!N5 -> 6 | O4: =Courses!O5 -> 8 | P4: =Courses!P5 -> 16 | Q4: =Courses!Q5 -> 18 | R4: =Courses!R5 -> 2 | S4: =Courses!S5 -> 12 | T4: =Courses!T5 -> 10 | U4: =Courses!U5 -> 14
L5: =SUM(C5:K5) -> 0 | V5: =SUM(M5:U5) -> 0 | W5: =L5+V5 -> 0 | X5: =W5-B5 -> 0
L6: 0 | V6: 0 | W6: 0 | X6: 0
L7: 0 | V7: 0 | W7: 0 | X7: 0
L8: 0 | V8: 0 | W8: 0 | X8: 0
A10: =Courses!A6 -> BLACK HORSE - NORTH (W)

Sheet Courses
A1: Code | B1: Hole | C1: 1 | D1: 2 | E1: 3 | F1: 4 | G1: 5 | H1: 6 | I1: 7 | J1: 8 | K1: 9 | M1: 10 | N1: 11 | O1: 12 | P1: 13 | Q1: 14 | R1: 15 | S1: 16 | T1: 17 | U1: 18 | AA1: Men's Tee | AD1: Womens Tee | AH1: a1 | AJ1: Men's Yardage - Selected Tee's | BG1: Men's Par - Selected Tee's | CD1: Men's Handicap - Selected Tee's
A2: 102 | C2: 3 | D2: 4 | E2: 5 | F2: 6 | G2: 7 | H2: 8 | I2: 9 | J2: 10 | K2: 11 | L2: 12 | M2: 13 | N2: 14 | O2: 15 | P2: 16 | Q2: 17 | R2: 18 | S2: 19 | T2: 20 | U2: 21 | V2: 22 | W2: 23 | Y2: Code | Z2: COURSE TO PLAY | AA2: TEE'S | AB2: YARDS | AC2: CR/Slope | AD2: TEE'S | AE2: YARDS | AF2: CR/Slope | AG2: Fee | AI2: Code | AK2: 1 | AL2: 2 | AM2: 3 | AN2: 4 | AO2: 5 | AP2: 6 | AQ2: 7 | AR2: 8 | AS2: 9 | AT2: Out | AU2: 10 | AV2: 11 | AW2: 12 | AX2: 13 | AY2: 14 | AZ2: 15 | BA2: 16 | BB2: 17 | BC2: 18 | BD2: In | BG2: Code | BI2: 1 | BJ2: 2 | BK2: 3 | BL2: 4 | BM2: 5 | BN2: 6 | BO2: 7 | BP2: 8 | BQ2: 9 | BR2: Out | BS2: 10 | BT2: 11 | BU2: 12 | BV2: 13 | BW2: 14 | BX2: 15 | BY2: 16 | BZ2: 17 | CA2: 18 | CB2: In | CE2: Code | CG2: 1 | CH2: 2 | CI2: 3 | CJ2: 4 | CK2: 5 | CL2: 6 | CM2: 7 | CN2: 8 | CO2: 9 | CP2: Out | CQ2: 10 | CR2: 11 | CS2: 12 | CT2: 13 | CU2: 14 | CV2: 15 | CW2: 16 | CX2: 17 | CY2: 18 | CZ2: In
A3: =$A$2&"Y" -> 102Y | B3: =IF(ISERROR(INDEX($AI$1:$BE$51,SMALL(IF($AI$3:$AI$51=$A$3,ROW($AI$3:$AI$51)),ROW(1:1)),2)),"",INDEX($AI$1:$BE$51,SMALL(IF($AI$3:$AI$51=$A$3,ROW($AI$3:$AI$51)),ROW(1:1)),2)) -> White | C3: =VLOOKUP($A$3,$AI3:$BE48,C$2) -> 395 | D3: =VLOOKUP($A$3,$AI3:$BE48,D$2) -> 145 | E3: 488 | F3: 352 | G3: 377 | H3: 147 | I3: 343 | J3: 462 | K3: 371 | L3: 3080 | M3: 392 | N3: 463 | O3: 365 | P3: 359 | Q3: 137 | R3: 417 | S3: 162 | T3: 385 | U3: 439 | V3: 3119 | W3: 6199 | Y3: 101 | Z3: BAY FOREST GC (W) | AA3: Gold | AB3: =BE3 -> 5661 | AC3: 68.7/119 | AD3: Red | AE3: =DX3 -> 0 | AF3: 71.0/127 | AG3: $36.80 | AH3: NC | AI3: =$Y3&"Y" -> 101Y | AJ3: GOLD | AK3: 364 | AL3: 354 | AM3: 135 | AN3: 428 | AO3: 311 | AP3: 135 | AQ3: 424 | AR3: 140 | AS3: 341 | AT3: =SUM(AK3:AS3) -> 2632 | AU3: 444 | AV3: 453 | AW3: 359 | AX3: 138 | AY3: 461 | AZ3: 355 | BA3: 306 | BB3: 145 | BC3: 368 | BD3: =SUM(AU3:BC3) -> 3029 | BE3: =SUM(AT3,BD3) -> 5661 | BG3: =$Y3&"P" -> 101P | BH3: Par | BI3: 4 | BJ3: 4 | BK3: 3 | BL3: 5 | BM3: 4 | BN3: 3 | BO3: 5 | BP3: 3 | BQ3: 4 | BR3: =SUM(BI3:BQ3) -> 35 | BS3: 5 | BT3: 5 | BU3: 4 | BV3: 3 | BW3: 5 | BX3: 4 | BY3: 4 | BZ3: 3 | CA3: 4 | CB3: =SUM(BS3:CA3) -> 37 | CC3: =SUM(BR3,CB3) -> 72 | CE3: =$Y3&"H" -> 101H | CF3: HDCP | CG3: 6 | CH3: 8 | CI3: 16 | CJ3: 10 | CK3: 4 | CL3: 18 | CM3: 2 | CN3: 14 | CO3: 12 | CP3: Out | CQ3: 15 | CR3: 9 | CS3: 7 | CT3: 11 | CU3: 5 | CV3: 3 | CW3: 13 | CX3: 17 | CY3: 1 | CZ3: In
A4: =$A$2&"P" -> 102P | B4: Par | C4: =VLOOKUP($A$4,$BG$3:$CC$48,C$2) -> 4 | D4: =VLOOKUP($A$4,$BG$3:$CC$48,D$2) -> 3 | E4: 5 | F4: 4 | G4: 4 | H4: 3 | I4: 4 | J4: 5 | K4: 4 | L4: 36 | M4: 4 | N4: 5 | O4: 4 | P4: 4 | Q4: 3 | R4: 4 | S4: 3 | T4: 4 | U4: 5 | V4: 36 | W4: 72 | Y4: 102 | Z4: BLACK HORSE - NORTH (W) | AA4: WHITE | AB4: 6199 | AC4: 71.1/123 | AD4: Green | AE4: 0 | AF4: 70.5/120 | AG4: $75.00 | AH4: NC | AI4: 102Y | AJ4: White | AK4: 395 | AL4: 145 | AM4: 488 | AN4: 352 | AO4: 377 | AP4: 147 | AQ4: 343 | AR4: 462 | AS4: 371 | AT4: 3080 | AU4: 392 | AV4: 463 | AW4: 365 | AX4: 359 | AY4: 137 | AZ4: 417 | BA4: 162 | BB4: 385 | BC4: 439 | BD4: 3119 | BE4: 6199 | BG4: 102P | BH4: Par | BI4: 4 | BJ4: 3 | BK4: 5 | BL4: 4 | BM4: 4 | BN4: 3 | BO4: 4 | BP4: 5 | BQ4: 4 | BR4: 36 | BS4: 4 | BT4: 5 | BU4: 4 | BV4: 4 | BW4: 3 | BX4: 4 | BY4: 3 | BZ4: 4 | CA4: 5 | CB4: 36 | CC4: 72 | CE4: 102H | CF4: HDCP | CG4: 9 | CH4: 13 | CI4: 15 | CJ4: 1 | CK4: 3 | CL4: 11 | CM4: 7 | CN4: 17 | CO4: 5 | CP4: Out | CQ4: 4 | CR4: 6 | CS4: 8 | CT4: 16 | CU4: 18 | CV4: 2 | CW4: 12 | CX4: 10 | CY4: 14 | CZ4: In
A5: =$A$2&"H" -> 102H | B5: Hdcp | C5: =VLOOKUP($A$5,$CE$3:$CZ$48,C$2) -> 9 | D5: =VLOOKUP($A$5,$CE$3:$CZ$48,D$2) -> 13 | E5: 15 | F5: 1 | G5: 3 | H5: 11 | I5: 7 | J5: 17 | K5: 5 | L5: Out | M5: 4 | N5: 6 | O5: 8 | P5: 16 | Q5: 18 | R5: 2 | S5: 12 | T5: 10 | U5: 14 | V5: In | Y5: 103 | Z5: BLACK HORSE - SOUTH (W) | AA5: WHITE | AB5: 6084 | AC5: 70.3/127 | AD5: Green | AE5: 0 | AF5: 68.7/120 | AG5: $75.00 | AH5: NC | AI5: 103Y | AJ5: White | AK5: 368 | AL5: 389 | AM5: 412 | AN5: 174 | AO5: 456 | AP5: 143 | AQ5: 341 | AR5: 403 | AS5: 420 | AT5: 3106 | AU5: 353 | AV5: 371 | AW5: 381 | AX5: 156 | AY5: 372 | AZ5: 472 | BA5: 305 | BB5: 144 | BC5: 424 | BD5: 2978 | BE5: 6084 | BG5: 103P | BH5: Par | BI5: 4 | BJ5: 4 | BK5: 4 | BL5: 3 | BM5: 5 | BN5: 3 | BO5: 4 | BP5: 4 | BQ5: 5 | BR5: 36 | BS5: 4 | BT5: 4 | BU5: 4 | BV5: 3 | BW5: 4 | BX5: 5 | BY5: 4 | BZ5: 3 | CA5: 5 | CB5: 36 | CC5: 72 | CE5: 103H | CF5: HDCP | CG5: 9 | CH5: 5 | CI5: 3 | CJ5: 11 | CK5: 7 | CL5: 17 | CM5: 15 | CN5: 1 | CO5: 13 | CP5: Out | CQ5: 18 | CR5: 14 | CS5: 6 | CT5: 10 | CU5: 4 | CV5: 2 | CW5: 16 | CX5: 8 | CY5: 12 | CZ5: In
A6: =IF(ISERROR(INDEX($Y$1:$Z$50,SMALL(IF($Y$3:$Y$50=$A$2,ROW($Y$3:$Y$50)),ROW($1:$1)),2)),"",INDEX($Y$1:$Z$50,SMALL(IF($Y$3:$Y$50=$A$2,ROW($Y$3:$Y$50)),ROW($1:$1)),2)) -> BLACK HORSE - NORTH (W) | Y6: 104 | Z6: CINCO RANCH (W) | AA6: White | AB6: 5822 | AC6: 68.9/122 | AD6: RED | AE6: 0 | AF6: 69.5/123 | AG6: $56.24 | AH6: NC | AI6: 104Y | AJ6: White | AK6: 341 | AL6: 303 | AM6: 133 | AN6: 472 | AO6: 152 | AP6: 491 | AQ6: 367 | AR6: 304 | AS6: 351 | AT6: 2914 | AU6: 373 | AV6: 291 | AW6: 126 | AX6: 371 | AY6: 356 | AZ6: 484 | BA6: 127 | BB6: 418 | BC6: 362 | BD6: 2908 | BE6: 5822 | BG6: 104P | BH6: Par | BI6: 4 | BJ6: 4 | BK6: 3 | BL6: 5 | BM6: 3 | BN6: 5 | BO6: 4 | BP6: 4 | BQ6: 4 | BR6: 36 | BS6: 4 | BT6: 4 | BU6: 3 | BV6: 4 | BW6: 4 | BX6: 5 | BY6: 3 | BZ6: 4 | CA6: 4 | CB6: 35 | CC6: 71 | CE6: 104H | CF6: HDCP | CG6: 9 | CH6: 5 | CI6: 15 | CJ6: 3 | CK6: 17 | CL6: 1 | CM6: 11 | CN6: 13 | CO6: 7 | CP6: Out | CQ6: 8 | CR6: 12 | CS6: 18 | CT6: 4 | CU6: 14 | CV6: 2 | CW6: 16 | CX6: 6 | CY6: 10 | CZ6: In
Y7: 105 | Z7: CLEAR CREEK (G) | AA7: Gold | AB7: 5617 | AC7: 67.2/117 | AD7: Red | AE7: 0 | AF7: 71.5/122 | AG7: $37.00 | AH7: NC | AI7: 105Y | AJ7: GOLD | AK7: 312 | AL7: 338 | AM7: 422 | AN7: 295 | AO7: 133 | AP7: 460 | AQ7: 122 | AR7: 275 | AS7: 331 | AT7: 2688 | AU7: 317 | AV7: 507 | AW7: 142 | AX7: 511 | AY7: 123 | AZ7: 324 | BA7: 307 | BB7: 330 | BC7: 368 | BD7: 2929 | BE7: 5617 | BG7: 105P | BH7: Par | BI7: 4 | BJ7: 4 | BK7: 5 | BL7: 4 | BM7: 3 | BN7: 5 | BO7: 3 | BP7: 4 | BQ7: 4 | BR7: 36 | BS7: 4 | BT7: 5 | BU7: 3 | BV7: 5 | BW7: 3 | BX7: 4 | BY7: 4 | BZ7: 4 | CA7: 4 | CB7: 36 | CC7: 72 | CE7: 105H | CF7: HDCP | CG7: 5 | CH7: 3 | CI7: 13 | CJ7: 9 | CK7: 15 | CL7: 7 | CM7: 17 | CN7: 11 | CO7: 1 | CP7: Out | CQ7: 6 | CR7: 2 | CS7: 12 | CT7: 10 | CU7: 18 | CV7: 16 | CW7: 14 | CX7: 4 | CY7: 8 | CZ7: In
Y8: 106 | Z8: CYPRESS LAKES (G) | AA8: GOLD | AB8: 6136 | AC8: 70.2/123 | AD8: GREEN | AE8: 0 | AF8: 71.5/127 | AG8: $51.00 | AH8: NC | AI8: 106Y | AJ8: GOLD | AK8: 328 | AL8: 476 | AM8: 372 | AN8: 176 | AO8: 358 | AP8: 334 | AQ8: 145 | AR8: 480 | AS8: 330 | AT8: 2999 | AU8: 510 | AV8: 158 | AW8: 362 | AX8: 319 | AY8: 490 | AZ8: 396 | BA8: 353 | BB8: 141 | BC8: 408 | BD8: 3137 | BE8: 6136 | BG8: 106P | BH8: Par | BI8: 4 | BJ8: 5 | BK8: 4 | BL8: 3 | BM8: 4 | BN8: 4 | BO8: 3 | BP8: 5 | BQ8: 4 | BR8: 36 | BS8: 5 | BT8: 3 | BU8: 4 | BV8: 4 | BW8: 5 | BX8: 4 | BY8: 4 | BZ8: 3 | CA8: 4 | CB8: 36 | CC8: 72 | CE8: 106H | CF8: HDCP | CG8: 17 | CH8: 5 | CI8: 1 | CJ8: 9 | CK8: 3 | CL8: 15 | CM8: 13 | CN8: 7 | CO8: 11 | CP8: Out | CQ8: 6 | CR8: 16 | CS8: 12 | CT8: 14 | CU8: 8 | CV8: 4 | CW8: 10 | CX8: 18 | CY8: 2 | CZ8: In
B9: =A1 -> Code | Y9: 107 | Z9: CYPRESSWOOD - CYPRESS (F) | AA9: FOREST | AB9: 6168 | AC9: 70.3/120 | AD9: COPPER | AE9: 0 | AF9: 67.3/114 | AG9: $37.89 | AH9: NC | AI9: 107Y | AJ9: Green | AK9: 485 | AL9: 335 | AM9: 326 | AN9: 375 | AO9: 155 | AP9: 361 | AQ9: 137 | AR9: 527 | AS9: 352 | AT9: 3053 | AU9: 381 | AV9: 368 | AW9: 354 | AX9: 320 | AY9: 117 | AZ9: 546 | BA9: 160 | BB9: 490 | BC9: 379 | BD9: 3115 | BE9: 6168 | BG9: 107P | BH9: Par | BI9: 5 | BJ9: 4 | BK9: 4 | BL9: 4 | BM9: 3 | BN9: 4 | BO9: 3 | BP9: 5 | BQ9: 4 | BR9: 36 | BS9: 4 | BT9: 4 | BU9: 4 | BV9: 4 | BW9: 3 | BX9: 5 | BY9: 3 | BZ9: 5 | CA9: 4 | CB9: 36 | CC9: 72 | CE9: 107H | CF9: HDCP | CG9: 3 | CH9: 13 | CI9: 11 | CJ9: 7 | CK9: 15 | CL9: 9 | CM9: 17 | CN9: 1 | CO9: 5 | CP9: Out | CQ9: 6 | CR9: 10 | CS9: 12 | CT9: 14 | CU9: 18 | CV9: 2 | CW9: 16 | CX9: 4 | CY9: 8 | CZ9: In
Y10: 108 | Z10: CYPRESSWOOD - CYPRESS (S) | AA10: SILVER | AB10: 5644 | AC10: 67.6/118 | AD10: COPPER | AE10: 0 | AF10: 69.9/117 | AG10: $37.89 | AH10: NC | AI10: 108Y | AJ10: Silver | AK10: 456 | AL10: 328 | AM10: 297 | AN10: 337 | AO10: 119 | AP10: 357 | AQ10: 137 | AR10: 499 | AS10: 321 | AT10: 2851 | AU10: 277 | AV10: 315 | AW10: 319 | AX10: 320 | AY10: 117 | AZ10: 515 | BA10: 127 | BB10: 461 | BC10: 342 | BD10: 2793 | BE10: 5644 | BG10: 108P | BH10: Par | BI10: 5 | BJ10: 4 | BK10: 4 | BL10: 4 | BM10: 3 | BN10: 4 | BO10: 3 | BP10: 5 | BQ10: 4 | BR10: 36 | BS10: 4 | BT10: 4 | BU10: 4 | BV10: 4 | BW10: 3 | BX10: 5 | BY10: 3 | BZ10: 5 | CA10: 4 | CB10: 36 | CC10: 72 | CE10: 108H | CF10: HDCP | CG10: 3 | CH10: 13 | CI10: 11 | CJ10: 7 | CK10: 15 | CL10: 9 | CM10: 17 | CN10: 1 | CO10: 5 | CP10: Out | CQ10: 6 | CR10: 10 | CS10: 12 | CT10: 14 | CU10: 18 | CV10: 2 | CW10: 16 | CX10: 4 | CY10: 8 | CZ10: In
B11: =A3 -> 102Y | Y11: 109 | Z11: CYPRESSWOOD - TRADITIONS (S) | AA11: SILVER | AB11: 5396 | AC11: 66.5/117 | AD11: COPPER | AE11: 0 | AF11: 67.7/115 | AG11: $48.71 | AH11: NC | AI11: 109Y | AJ11: Silver | AK11: 348 | AL11: 328 | AM11: 129 | AN11: 328 | AO11: 461 | AP11: 277 | AQ11: 482 | AR11: 107 | AS11: 305 | AT11: 2765 | AU11: 315 | AV11: 153 | AW11: 413 | AX11: 348 | AY11: 106 | AZ11: 328 | BA11: 318 | BB11: 215 | BC11: 435 | BD11: 2631 | BE11: 5396 | BG11: 109P | BH11: Par | BI11: 4 | BJ11: 4 | BK11: 3 | BL11: 4 | BM11: 5 | BN11: 4 | BO11: 5 | BP11: 3 | BQ11: 4 | BR11: 36 | BS11: 4 | BT11: 3 | BU11: 5 | BV11: 4 | BW11: 3 | BX11: 4 | BY11: 4 | BZ11: 4 | CA11: 5 | CB11: 36 | CC11: 72 | CE11: 109H | CF11: HDCP | CG11: 7 | CH11: 17 | CI11: 11 | CJ11: 1 | CK11: 3 | CL11: 13 | CM11: 9 | CN11: 15 | CO11: 5 | CP11: Out | CQ11: 14 | CR11: 8 | CS11: 10 | CT11: 6 | CU11: 18 | CV11: 12 | CW11: 2 | CX11: 16 | CY11: 4 | CZ11: In
B12: 102P | Y12: 110 | Z12: CYPRESSWOOD - TRADITIONS (W) | AA12: WHITE | AB12: 6162 | AC12: 69.9/125 | AD12: COPPER | AE12: 0 | AF12: 67.8/117 | AG12: $48.71 | AH12: NC | AI12: 110Y | AJ12: White | AK12: 348 | AL12: 328 | AM12: 169 | AN12: 398 | AO12: 547 | AP12: 311 | AQ12: 482 | AR12: 169 | AS12: 394 | AT12: 3146 | AU12: 348 | AV12: 187 | AW12: 468 | AX12: 395 | AY12: 151 | AZ12: 328 | BA12: 378 | BB12: 265 | BC12: 496 | BD12: 3016 | BE12: 6162 | BG12: 110P | BH12: Par | BI12: 4 | BJ12: 4 | BK12: 3 | BL12: 4 | BM12: 5 | BN12: 4 | BO12: 5 | BP12: 3 | BQ12: 4 | BR12: 36 | BS12: 4 | BT12: 3 | BU12: 5 | BV12: 4 | BW12: 3 | BX12: 4 | BY12: 4 | BZ12: 4 | CA12: 5 | CB12: 36 | CC12: 72 | CE12: 110H | CF12: HDCP | CG12: 7 | CH12: 17 | CI12: 11 | CJ12: 1 | CK12: 3 | CL12: 13 | CM12: 9 | CN12: 15 | CO12: 5 | CP12: Out | CQ12: 14 | CR12: 8 | CS12: 10 | CT12: 6 | CU12: 18 | CV12: 12 | CW12: 2 | CX12: 16 | CY12: 4 | CZ12: In
B13: 102H | Y13: 111 | Z13: EAGLE POINTE (G) | AA13: GREEN | AB13: 5881 | AC13: 69.3/120 | AD13: RED | AE13: 5213 | AF13: 70.0/122 | AG13: $50.00 | AH13: NC | AI13: 111Y | AJ13: Green | AK13: 479 | AL13: 332 | AM13: 129 | AN13: 358 | AO13: 356 | AP13: 389 | AQ13: 321 | AR13: 135 | AS13: 498 | AT13: 2997 | AU13: 384 | AV13: 349 | AW13: 136 | AX13: 361 | AY13: 306 | AZ13: 113 | BA13: 413 | BB13: 479 | BC13: 343 | BD13: 2884 | BE13: 5881 | BG13: 111P | BH13: Par | BI13: 5 | BJ13: 4 | BK13: 3 | BL13: 4 | BM13: 4 | BN13: 4 | BO13: 4 | BP13: 3 | BQ13: 5 | BR13: 36 | BS13: 4 | BT13: 4 | BU13: 3 | BV13: 4 | BW13: 4 | BX13: 3 | BY13: 4 | BZ13: 5 | CA13: 4 | CB13: 35 | CC13: 71 | CE13: 111H | CF13: HDCP | CG13: 15 | CH13: 5 | CI13: 17 | CJ13: 7 | CK13: 9 | CL13: 1 | CM13: 13 | CN13: 11 | CO13: 3 | CP13: Out | CQ13: 4 | CR13: 2 | CS13: 16 | CT13: 2 | CU13: 14 | CV13: 18 | CW13: 8 | CX13: 10 | CY13: 6 | CZ13: In
Y14: 112 | Z14: GLEANNLOCH - GLEANN/LOCH (G) | AA14: GOLD | AB14: 5862 | AC14: 68.8/121 | AD14: Red | AE14: =DX14 -> 0 | AF14: 69.8/120 | AG14: $49.00 | AH14: GPGL | AI14: 112Y | AJ14: Gold | AK14: 122 | AL14: 318 | AM14: 359 | AN14: 314 | AO14: 397 | AP14: 144 | AQ14: 467 | AR14: 124 | AS14: 506 | AT14: 2751 | AU14: 384 | AV14: 485 | AW14: 357 | AX14: 368 | AY14: 445 | AZ14: 128 | BA14: 370 | BB14: 136 | BC14: 438 | BD14: 3111 | BE14: 5862 | BG14: 112P | BH14: Par | BI14: 3 | BJ14: 4 | BK14: 4 | BL14: 4 | BM14: 4 | BN14: 3 | BO14: 5 | BP14: 3 | BQ14: 5 | BR14: 35 | BS14: 4 | BT14: 5 | BU14: 4 | BV14: 4 | BW14: 5 | BX14: 3 | BY14: 4 | BZ14: 3 | CA14: 4 | CB14: 36 | CC14: 71 | CE14: 112H | CF14: HDCP | CG14: 5 | CH14: 9 | CI14: 3 | CJ14: 17 | CK14: 1 | CL14: 13 | CM14: 15 | CN14: 11 | CO14: 7 | CP14: Out | CQ14: 8 | CR14: 16 | CS14: 6 | CT14: 10 | CU14: 18 | CV14: 14 | CW14: 4 | CX14: 12 | CY14: 2 | CZ14: In
Y15: 113 | Z15: GLEANNLOCH - LOCH/PINES (G) | AA15: GOLD | AB15: 6189 | AC15: 70.2/130 | AD15: Red | AE15: 0 | AF15: 71.2/125 | AG15: $49.00 | AH15: GPLP | AI15: 113Y | AJ15: Gold | AK15: 384 | AL15: 485 | AM15: 357 | AN15: 368 | AO15: 445 | AP15: 128 | AQ15: 370 | AR15: 136 | AS15: 438 | AT15: 3111 | AU15: 518 | AV15: 380 | AW15: 116 | AX15: 441 | AY15: 116 | AZ15: 398 | BA15: 343 | BB15: 408 | BC15: 358 | BD15: 3078 | BE15: 6189 | BG15: 113P | BH15: Par | BI15: 4 | BJ15: 5 | BK15: 4 | BL15: 4 | BM15: 5 | BN15: 3 | BO15: 4 | BP15: 3 | BQ15: 4 | BR15: 36 | BS15: 5 | BT15: 4 | BU15: 3 | BV15: 5 | BW15: 3 | BX15: 4 | BY15: 4 | BZ15: 4 | CA15: 4 | CB15: 36 | CC15: 72 | CE15: 113H | CF15: HDCP | CG15: 7 | CH15: 15 | CI15: 5 | CJ15: 9 | CK15: 17 | CL15: 13 | CM15: 3 | CN15: 11 | CO15: 1 | CP15: Out | CQ15: 6 | CR15: 4 | CS15: 14 | CT15: 18 | CU15: 16 | CV15: 2 | CW15: 12 | CX15: 8 | CY15: 10 | CZ15: In
Y16: 114 | Z16: GLEANNLOCH - PINES/GLEANN (G) | AA16: GOLD | AB16: 5829 | AC16: 69.0/123 | AD16: Red | AE16: 0 | AF16: 70.0/122 | AG16: $49.00 | AH16: GPPG | AI16: 114Y | AJ16: Gold | AK16: 518 | AL16: 380 | AM16: 116 | AN16: 441 | AO16: 116 | AP16: 398 | AQ16: 343 | AR16: 408 | AS16: 358 | AT16: 3078 | AU16: 122 | AV16: 318 | AW16: 359 | AX16: 314 | AY16: 397 | AZ16: 144 | BA16: 467 | BB16: 124 | BC16: 506 | BD16: 2751 | BE16: 5829 | BG16: 114P | BH16: Par | BI16: 5 | BJ16: 4 | BK16: 3 | BL16: 5 | BM16: 3 | BN16: 4 | BO16: 4 | BP16: 4 | BQ16: 4 | BR16: 36 | BS16: 3 | BT16: 4 | BU16: 4 | BV16: 4 | BW16: 4 | BX16: 3 | BY16: 5 | BZ16: 3 | CA16: 5 | CB16: 35 | CC16: 71 | CE16: 114H | CF16: HDCP | CG16: 5 | CH16: 3 | CI16: 13 | CJ16: 17 | CK16: 15 | CL16: 1 | CM16: 11 | CN16: 7 | CO16: 9 | CP16: Out | CQ16: 6 | CR16: 10 | CS16: 4 | CT16: 18 | CU16: 2 | CV16: 14 | CW16: 16 | CX16: 12 | CY16: 8 | CZ16: In
Y17: 115 | Z17: GUS WORTHAM (W) | AA17: WHITE | AB17: 6015 | AC17: 69.6/121 | AD17: Green | AE17: 4887 | AF17: 68.2/116 | AG17: $54.71 | AH17: GW | AI17: 115Y | AJ17: White | AK17: 324 | AL17: 460 | AM17: 497 | AN17: 430 | AO17: 181 | AP17: 438 | AQ17: 383 | AR17: 123 | AS17: 302 | AT17: 3138 | AU17: 126 | AV17: 417 | AW17: 284 | AX17: 306 | AY17: 373 | AZ17: 347 | BA17: 205 | BB17: 473 | BC17: 346 | BD17: 2877 | BE17: 6015 | BG17: 115P | BH17: Par | BI17: 4 | BJ17: 5 | BK17: 5 | BL17: 4 | BM17: 3 | BN17: 4 | BO17: 4 | BP17: 3 | BQ17: 4 | BR17: 36 | BS17: 3 | BT17: 4 | BU17: 4 | BV17: 4 | BW17: 4 | BX17: 4 | BY17: 3 | BZ17: 5 | CA17: 4 | CB17: 35 | CC17: 71 | CE17: 115H | CF17: HDCP | CG17: 15 | CH17: 3 | CI17: 1 | CJ17: 7 | CK17: 13 | CL17: 5 | CM17: 9 | CN17: 17 | CO17: 11 | CP17: Out | CQ17: 18 | CR17: 4 | CS17: 16 | CT17: 12 | CU17: 6 | CV17: 10 | CW17: 14 | CX17: 2 | CY17: 8 | CZ17: In
Y18: 116 | Z18: HIGH MEADOW RANCH (G/W) | AA18: Green/White | AB18: =BE18 -> 6003 | AC18: 69.1/118 | AD18: Maroon | AE18: =DX18 -> 0 | AF18: 68.7/121 | AG18: $64.35 | AH18: HMR | AI18: 116Y | AJ18: G/W | AK18: 328 | AL18: 497 | AM18: 377 | AN18: 476 | AO18: 158 | AP18: 314 | AQ18: 322 | AR18: 355 | AS18: 162 | AT18: =SUM(AK18:AS18) -> 2989 | AU18: 403 | AV18: 128 | AW18: 298 | AX18: 472 | AY18: 389 | AZ18: 398 | BA18: 163 | BB18: 393 | BC18: 370 | BD18: =SUM(AU18:BC18) -> 3014 | BE18: =SUM(AT18,BD18) -> 6003 | BG18: 116P | BH18: Par | BI18: 4 | BJ18: 5 | BK18: 4 | BL18: 5 | BM18: 3 | BN18: 4 | BO18: 4 | BP18: 4 | BQ18: 3 | BR18: =SUM(BI18:BQ18) -> 36 | BS18: 5 | BT18: 3 | BU18: 4 | BV18: 5 | BW18: 4 | BX18: 4 | BY18: 3 | BZ18: 4 | CA18: 4 | CB18: =SUM(BS18:CA18) -> 36 | CC18: =SUM(BR18,CB18) -> 72 | CE18: 116H | CF18: HDCP | CG18: 13 | CH18: 9 | CI18: 3 | CJ18: 7 | CK18: 17 | CL18: 15 | CM18: 5 | CN18: 1 | CO18: 11 | CP18: Out | CQ18: 8 | CR18: 18 | CS18: 12 | CT18: 14 | CU18: 10 | CV18: 2 | CW18: 16 | CX18: 4 | CY18: 6 | CZ18: In
Y19: 117 | Z19: HIGH MEADOW RANCH (W) | AA19: White | AB19: 5614 | AC19: 67.6/119 | AD19: Maroon | AE19: 0 | AF19: 68.7/119 | AG19: $64.35 | AH19: HMR | AI19: 117Y | AJ19: White | AK19: 289 | AL19: 467 | AM19: 329 | AN19: 464 | AO19: 135 | AP19: 277 | AQ19: 322 | AR19: 355 | AS19: 162 | AT19: 2800 | AU19: 403 | AV19: 128 | AW19: 298 | AX19: 450 | AY19: 354 | AZ19: 339 | BA19: 143 | BB19: 360 | BC19: 339 | BD19: 2814 | BE19: 5614 | BG19: 117P | BH19: Par | BI19: 4 | BJ19: 5 | BK19: 4 | BL19: 5 | BM19: 3 | BN19: 4 | BO19: 4 | BP19: 4 | BQ19: 3 | BR19: 36 | BS19: 5 | BT19: 3 | BU19: 4 | BV19: 5 | BW19: 4 | BX19: 4 | BY19: 3 | BZ19: 4 | CA19: 4 | CB19: 36 | CC19: 72 | CE19: 117H | CF19: HDCP | CG19: 13 | CH19: 9 | CI19: 3 | CJ19: 7 | CK19: 17 | CL19: 15 | CM19: 5 | CN19: 1 | CO19: 11 | CP19: Out | CQ19: 8 | CR19: 18 | CS19: 12 | CT19: 14 | CU19: 10 | CV19: 2 | CW19: 16 | CX19: 4 | CY19: 6 | CZ19: In
Y20: 118 | Z20: HOUSTON NATIONAL (W) | AA20: WHITE | AB20: 6265 | AC20: 70.3/126 | AD20: RED | AE20: 0 | AF20: 73.0/126 | AG20: $50.00 | AH20: NC | AI20: 118Y | AJ20: White | AK20: 362 | AL20: 528 | AM20: 140 | AN20: 392 | AO20: 388 | AP20: 508 | AQ20: 164 | AR20: 349 | AS20: 356 | AT20: 3187 | AU20: 339 | AV20: 364 | AW20: 542 | AX20: 351 | AY20: 146 | AZ20: 349 | BA20: 160 | BB20: 359 | BC20: 468 | BD20: 3078 | BE20: 6265 | BG20: 118P | BH20: Par | BI20: 4 | BJ20: 5 | BK20: 3 | BL20: 4 | BM20: 4 | BN20: 5 | BO20: 3 | BP20: 4 | BQ20: 4 | BR20: 36 | BS20: 4 | BT20: 4 | BU20: 5 | BV20: 4 | BW20: 3 | BX20: 4 | BY20: 3 | BZ20: 4 | CA20: 5 | CB20: 36 | CC20: 72 | CE20: 118H | CF20: HDCP | CG20: 5 | CH20: 1 | CI20: 17 | CJ20: 7 | CK20: 9 | CL20: 11 | CM20: 15 | CN20: 13 | CO20: 3 | CP20: Out | CQ20: 14 | CR20: 8 | CS20: 4 | CT20: 10 | CU20: 18 | CV20: 12 | CW20: 16 | CX20: 2 | CY20: 6 | CZ20: In
Y21: 119 | Z21: JERSEY MEADOW (G) | AA21: GOLD | AB21: 5721 | AC21: 68.7/122 | AD21: Green | AE21: 0 | AF21: 69.9/122 | AG21: $43.31 | AH21: NC | AI21: 119Y | AJ21: GOLD | AK21: 349 | AL21: 396 | AM21: 365 | AN21: 145 | AO21: 347 | AP21: 141 | AQ21: 466 | AR21: 152 | AS21: 292 | AT21: 2653 | AU21: 389 | AV21: 144 | AW21: 348 | AX21: 429 | AY21: 376 | AZ21: 373 | BA21: 318 | BB21: 340 | BC21: 351 | BD21: 3068 | BE21: 5721 | BG21: 119P | BH21: Par | BI21: 4 | BJ21: 4 | BK21: 4 | BL21: 3 | BM21: 4 | BN21: 3 | BO21: 5 | BP21: 3 | BQ21: 4 | BR21: 34 | BS21: 4 | BT21: 3 | BU21: 4 | BV21: 5 | BW21: 4 | BX21: 4 | BY21: 4 | BZ21: 4 | CA21: 4 | CB21: 36 | CC21: 70 | CE21: 119H | CF21: HDCP | CG21: 11 | CH21: 9 | CI21: 7 | CJ21: 15 | CK21: 3 | CL21: 17 | CM21: 5 | CN21: 13 | CO21: 1 | CP21: Out | CQ21: 4 | CR21: 18 | CS21: 14 | CT21: 8 | CU21: 6 | CV21: 12 | CW21: 16 | CX21: 2 | CY21: 10 | CZ21: In
Y22: 120 | Z22: LONGWOOD (Palmetta/Post Oak) | AA22: BLACK | AB22: 5456 | AC22: 66.7/119 | AD22: Maroon | AE22: 0 | AF22: 67.9/118 | AG22: $65.00 | AH22: LPALM | AI22: 120Y | AJ22: Black | AK22: 431 | AL22: 335 | AM22: 111 | AN22: 400 | AO22: 296 | AP22: 250 | AQ22: 149 | AR22: 369 | AS22: 355 | AT22: 2696 | AU22: 362 | AV22: 164 | AW22: 471 | AX22: 126 | AY22: 355 | AZ22: 284 | BA22: 485 | BB22: 121 | BC22: 392 | BD22: 2760 | BE22: 5456 | BG22: 120P | BH22: Par | BI22: 5 | BJ22: 4 | BK22: 3 | BL22: 5 | BM22: 4 | BN22: 4 | BO22: 3 | BP22: 4 | BQ22: 4 | BR22: 36 | BS22: 5 | BT22: 3 | BU22: 5 | BV22: 3 | BW22: 4 | BX22: 4 | BY22: 5 | BZ22: 3 | CA22: 4 | CB22: 36 | CC22: 72 | CE22: 120H | CF22: HDCP | CG22: 13 | CH22: 1 | CI22: 11 | CJ22: 5 | CK22: 9 | CL22: 15 | CM22: 17 | CN22: 3 | CO22: 7 | CP22: Out | CQ22: 8 | CR22: 10 | CS22: 12 | CT22: 16 | CU22: 2 | CV22: 14 | CW22: 4 | CX22: 18 | CY22: 6 | CZ22: In
Y23: 121 | Z23: LONGWOOD (Pine/Palmetta) | AA23: BLACK | AB23: 5750 | AC23: 68.0/120 | AD23: Maroon | AE23: 0 | AF23: 68.9/123 | AG23: $65.00 | AH23: LPINE | AI23: 121Y | AJ23: Black | AK23: 361 | AL23: 397 | AM23: 141 | AN23: 469 | AO23: 381 | AP23: 375 | AQ23: 113 | AR23: 425 | AS23: 392 | AT23: 3054 | AU23: 431 | AV23: 335 | AW23: 111 | AX23: 400 | AY23: 296 | AZ23: 250 | BA23: 149 | BB23: 369 | BC23: 355 | BD23: 2696 | BE23: 5750 | BG23: 121P | BH23: Par | BI23: 4 | BJ23: 4 | BK23: 3 | BL23: 5 | BM23: 4 | BN23: 4 | BO23: 3 | BP23: 5 | BQ23: 4 | BR23: 36 | BS23: 5 | BT23: 4 | BU23: 3 | BV23: 5 | BW23: 4 | BX23: 4 | BY23: 3 | BZ23: 4 | CA23: 4 | CB23: 36 | CC23: 72 | CE23: 121H | CF23: HDCP | CG23: 3 | CH23: 1 | CI23: 17 | CJ23: 11 | CK23: 9 | CL23: 7 | CM23: 15 | CN23: 13 | CO23: 5 | CP23: Out | CQ23: 14 | CR23: 2 | CS23: 12 | CT23: 6 | CU23: 10 | CV23: 16 | CW23: 18 | CX23: 4 | CY23: 8 | CZ23: In
Y24: 122 | Z24: LONGWOOD (Post Oak/Pine) | AA24: BLACK | AB24: 5814 | AC24: 68.5/122 | AD24: Maroon | AE24: 0 | AF24: 69.9/124 | AG24: $65.00 | AH24: LPOST | AI24: 122Y | AJ24: Black | AK24: 362 | AL24: 164 | AM24: 471 | AN24: 126 | AO24: 355 | AP24: 284 | AQ24: 485 | AR24: 121 | AS24: 392 | AT24: 2760 | AU24: 361 | AV24: 397 | AW24: 141 | AX24: 469 | AY24: 381 | AZ24: 375 | BA24: 113 | BB24: 425 | BC24: 392 | BD24: 3054 | BE24: 5814 | BG24: 122P | BH24: Par | BI24: 5 | BJ24: 3 | BK24: 5 | BL24: 3 | BM24: 4 | BN24: 4 | BO24: 5 | BP24: 3 | BQ24: 4 | BR24: 36 | BS24: 4 | BT24: 4 | BU24: 3 | BV24: 5 | BW24: 4 | BX24: 4 | BY24: 3 | BZ24: 5 | CA24: 4 | CB24: 36 | CC24: 72 | CE24: 122H | CF24: HDCP | CG24: 7 | CH24: 9 | CI24: 11 | CJ24: 15 | CK24: 1 | CL24: 13 | CM24: 3 | CN24: 17 | CO24: 5 | CP24: Out | CQ24: 4 | CR24: 2 | CS24: 18 | CT24: 12 | CU24: 10 | CV24: 8 | CW24: 16 | CX24: 14 | CY24: 6 | CZ24: In
Y25: 123 | Z25: MARGARITAVILLE RESORT (G) | AA25: GOLD | AB25: 5969 | AC25: 68.4/125 | AD25: Silver | AE25: 0 | AF25: 68.8/116 | AG25: $48.71 | AH25: NC | AI25: 123Y | AJ25: Yellow | AK25: 451 | AL25: 142 | AM25: 354 | AN25: 422 | AO25: 395 | AP25: 156 | AQ25: 355 | AR25: 351 | AS25: 423 | AT25: 3049 | AU25: 384 | AV25: 135 | AW25: 369 | AX25: 380 | AY25: 165 | AZ25: 372 | BA25: 488 | BB25: 146 | BC25: 481 | BD25: 2920 | BE25: 5969 | BG25: 123P | BH25: Par | BI25: 5 | BJ25: 3 | BK25: 4 | BL25: 4 | BM25: 4 | BN25: 3 | BO25: 4 | BP25: 4 | BQ25: 5 | BR25: 36 | BS25: 4 | BT25: 3 | BU25: 4 | BV25: 4 | BW25: 3 | BX25: 4 | BY25: 5 | BZ25: 3 | CA25: 5 | CB25: 35 | CC25: 71 | CE25: 123H | CF25: HDCP | CG25: 7 | CH25: 17 | CI25: 13 | CJ25: 1 | CK25: 3 | CL25: 15 | CM25: 5 | CN25: 9 | CO25: 11 | CP25: Out | CQ25: 2 | CR25: 18 | CS25: 10 | CT25: 8 | CU25: 16 | CV25: 4 | CW25: 12 | CX25: 14 | CY25: 6 | CZ25: In
Y26: 124 | Z26: MOODY GARDENS | AA26: GOLD | AB26: 5972 | AC26: 69.4/123 | AD26: RED | AE26: 0 | AF26: 71.2/121 | AG26: $58.46 | AH26: NC | AI26: 124Y | AJ26: GOLD | AK26: 425 | AL26: 397 | AM26: 312 | AN26: 105 | AO26: 537 | AP26: 175 | AQ26: 528 | AR26: 352 | AS26: 126 | AT26: 2957 | AU26: 355 | AV26: 473 | AW26: 302 | AX26: 166 | AY26: 527 | AZ26: 308 | BA26: 378 | BB26: 107 | BC26: 399 | BD26: 3015 | BE26: 5972 | BG26: 124P | BH26: Par | BI26: 5 | BJ26: 4 | BK26: 4 | BL26: 3 | BM26: 5 | BN26: 3 | BO26: 5 | BP26: 4 | BQ26: 3 | BR26: 36 | BS26: 4 | BT26: 5 | BU26: 4 | BV26: 3 | BW26: 5 | BX26: 4 | BY26: 4 | BZ26: 3 | CA26: 4 | CB26: 36 | CC26: 72 | CE26: 124H | CF26: HDCP | CG26: 15 | CH26: 7 | CI26: 13 | CJ26: 17 | CK26: 1 | CL26: 3 | CM26: 9 | CN26: 5 | CO26: 11 | CP26: Out | CQ26: 8 | CR26: 12 | CS26: 14 | CT26: 10 | CU26: 4 | CV26: 16 | CW26: 6 | CX26: 18 | CY26: 2 | CZ26: In
Y27: 125 | Z27: NORTHGATE CC - (W) | AA27: WHITE | AB27: 5855 | AC27: 69.2/127 | AD27: Green | AE27: 0 | AF27: 69.6/120 | AG27: $85.00 | AH27: nc | AI27: 125Y | AJ27: WHITE | AK27: 501 | AL27: 344 | AM27: 321 | AN27: 122 | AO27: 347 | AP27: 372 | AQ27: 356 | AR27: 150 | AS27: 520 | AT27: 3033 | AU27: 460 | AV27: 157 | AW27: 278 | AX27: 392 | AY27: 344 | AZ27: 148 | BA27: 380 | BB27: 141 | BC27: 522 | BD27: 2822 | BE27: 5855 | BG27: 125P | BH27: Par | BI27: 5 | BJ27: 4 | BK27: 4 | BL27: 3 | BM27: 4 | BN27: 4 | BO27: 4 | BP27: 3 | BQ27: 5 | BR27: 36 | BS27: 5 | BT27: 3 | BU27: 4 | BV27: 4 | BW27: 4 | BX27: 3 | BY27: 4 | BZ27: 3 | CA27: 5 | CB27: 35 | CC27: 71 | CE27: 125H | CF27: HDCP | CG27: 9 | CH27: 13 | CI27: 7 | CJ27: 17 | CK27: 11 | CL27: 5 | CM27: 1 | CN27: 15 | CO27: 3 | CP27: Out | CQ27: 6 | CR27: 18 | CS27: 12 | CT27: 2 | CU27: 10 | CV27: 16 | CW27: 8 | CX27: 14 | CY27: 4 | CZ27: In
Y28: 126 | Z28: OAKHURST (W) | AA28: WHITE | AB28: 5647 | AC28: 66.3/115 | AD28: RED | AE28: 0 | AF28: 70.1/120 | AG28: $42.21 | AH28: NC | AI28: 126Y | AJ28: WHITE | AK28: 422 | AL28: 334 | AM28: 298 | AN28: 462 | AO28: 122 | AP28: 285 | AQ28: 140 | AR28: 333 | AS28: 362 | AT28: 2758 | AU28: 441 | AV28: 121 | AW28: 369 | AX28: 329 | AY28: 424 | AZ28: 318 | BA28: 338 | BB28: 156 | BC28: 393 | BD28: 2889 | BE28: 5647 | BG28: 126P | BH28: Par | BI28: 5 | BJ28: 4 | BK28: 4 | BL28: 5 | BM28: 3 | BN28: 4 | BO28: 3 | BP28: 4 | BQ28: 4 | BR28: 36 | BS28: 5 | BT28: 3 | BU28: 4 | BV28: 4 | BW28: 5 | BX28: 4 | BY28: 4 | BZ28: 3 | CA28: 4 | CB28: 36 | CC28: 72 | CE28: 126H | CF28: HDCP | CG28: 9 | CH28: 3 | CI28: 11 | CJ28: 5 | CK28: 17 | CL28: 15 | CM28: 13 | CN28: 7 | CO28: 1 | CP28: Out | CQ28: 8 | CR28: 14 | CS28: 12 | CT28: 10 | CU28: 18 | CV28: 16 | CW28: 4 | CX28: 6 | CY28: 2 | CZ28: In
Y29: 127 | Z29: PANORAMA (Rolling Hills/Winged Foot) (Bk) | AA29: BLACK | AB29: 5563 | AC29: 65.4/116 | AD29: RED | AE29: =DX30 -> 0 | AF29: 69.5/114 | AG29: $49.72 | AH29: RHWF | AI29: 127Y | AJ29: Black | AK29: 307 | AL29: 368 | AM29: 102 | AN29: 409 | AO29: 257 | AP29: 120 | AQ29: 319 | AR29: 300 | AS29: 447 | AT29: 2629 | AU29: 515 | AV29: 146 | AW29: 299 | AX29: 352 | AY29: 332 | AZ29: 342 | BA29: 153 | BB29: 439 | BC29: 356 | BD29: 2934 | BE29: 5563 | BG29: 127P | BH29: Par | BI29: 4 | BJ29: 4 | BK29: 3 | BL29: 5 | BM29: 4 | BN29: 3 | BO29: 4 | BP29: 4 | BQ29: 5 | BR29: 36 | BS29: 5 | BT29: 3 | BU29: 4 | BV29: 4 | BW29: 4 | BX29: 4 | BY29: 3 | BZ29: 5 | CA29: 4 | CB29: 36 | CC29: 72 | CE29: 127H | CF29: HDCP | CG29: 7 | CH29: 5 | CI29: 11 | CJ29: 9 | CK29: 13 | CL29: 17 | CM29: 3 | CN29: 15 | CO29: 1 | CP29: Out | CQ29: 2 | CR29: 18 | CS29: 6 | CT29: 14 | CU29: 12 | CV29: 8 | CW29: 16 | CX29: 10 | CY29: 4 | CZ29: In
Y30: 128 | Z30: PANORAMA (Thunderbird/Rolling Hills) (BK) | AA30: BLACK | AB30: 5326 | AC30: 66.0/118 | AD30: RED | AE30: 0 | AF30: 70.8/117 | AG30: $49.72 | AH30: TBRH | AI30: 128Y | AJ30: Black | AK30: 275 | AL30: 125 | AM30: 449 | AN30: 315 | AO30: 333 | AP30: 304 | AQ30: 168 | AR30: 432 | AS30: 296 | AT30: 2697 | AU30: 307 | AV30: 368 | AW30: 102 | AX30: 409 | AY30: 257 | AZ30: 120 | BA30: 319 | BB30: 300 | BC30: 447 | BD30: 2629 | BE30: 5326 | BG30: 128P | BH30: Par | BI30: 4 | BJ30: 3 | BK30: 5 | BL30: 4 | BM30: 4 | BN30: 4 | BO30: 3 | BP30: 5 | BQ30: 4 | BR30: 36 | BS30: 4 | BT30: 4 | BU30: 3 | BV30: 5 | BW30: 4 | BX30: 3 | BY30: 4 | BZ30: 4 | CA30: 5 | CB30: 36 | CC30: 72 | CE30: 128H | CF30: HDCP | CG30: 17 | CH30: 15 | CI30: 11 | CJ30: 9 | CK30: 13 | CL30: 3 | CM30: 5 | CN30: 7 | CO30: 1 | CP30: Out | CQ30: 8 | CR30: 6 | CS30: 12 | CT30: 10 | CU30: 14 | CV30: 18 | CW30: 4 | CX30: 16 | CY30: 2 | CZ30: In
Y31: 129 | Z31: PANORAMA (Winged Foot/Thunderbird) (BK) | AA31: BLACK | AB31: 5631 | AC31: 65.0/118 | AD31: RED | AE31: =DX31 -> 0 | AF31: 69.5/114 | AG31: $49.72 | AH31: WFTB | AI31: 129Y | AJ31: Black | AK31: 515 | AL31: 146 | AM31: 299 | AN31: 352 | AO31: 332 | AP31: 342 | AQ31: 153 | AR31: 439 | AS31: 356 | AT31: 2934 | AU31: 275 | AV31: 125 | AW31: 449 | AX31: 315 | AY31: 333 | AZ31: 304 | BA31: 168 | BB31: 432 | BC31: 296 | BD31: 2697 | BE31: 5631 | BG31: 129P | BH31: Par | BI31: 5 | BJ31: 3 | BK31: 4 | BL31: 4 | BM31: 4 | BN31: 4 | BO31: 3 | BP31: 5 | BQ31: 4 | BR31: 36 | BS31: 4 | BT31: 3 | BU31: 5 | BV31: 4 | BW31: 4 | BX31: 4 | BY31: 3 | BZ31: 5 | CA31: 4 | CB31: 36 | CC31: 72 | CE31: 129H | CF31: HDCP | CG31: 1 | CH31: 17 | CI31: 5 | CJ31: 13 | CK31: 11 | CL31: 7 | CM31: 15 | CN31: 9 | CO31: 3 | CP31: Out | CQ31: 18 | CR31: 16 | CS31: 12 | CT31: 10 | CU31: 14 | CV31: 4 | CW31: 6 | CX31: 8 | CY31: 2 | CZ31: In
Y32: 130 | Z32: PEARLAND GC (W) | AA32: WHITE | AB32: 5859 | AC32: 69.2/121 | AD32: RED | AE32: 0 | AF32: 70.0/119 | AG32: $38.79 | AH32: NC | AI32: 130Y | AJ32: White | AK32: 327 | AL32: 410 | AM32: 140 | AN32: 337 | AO32: 142 | AP32: 397 | AQ32: 289 | AR32: 376 | AS32: 384 | AT32: 2802 | AU32: 449 | AV32: 151 | AW32: 357 | AX32: 388 | AY32: 341 | AZ32: 124 | BA32: 456 | BB32: 383 | BC32: 408 | BD32: 3057 | BE32: 5859 | BG32: 130P | BH32: Par | BI32: 4 | BJ32: 5 | BK32: 3 | BL32: 4 | BM32: 3 | BN32: 5 | BO32: 4 | BP32: 4 | BQ32: 4 | BR32: 36 | BS32: 5 | BT32: 3 | BU32: 4 | BV32: 4 | BW32: 4 | BX32: 3 | BY32: 5 | BZ32: 4 | CA32: 4 | CB32: 36 | CC32: 72 | CE32: 130H | CF32: HDCP | CG32: 11 | CH32: 1 | CI32: 15 | CJ32: 9 | CK32: 17 | CL32: 3 | CM32: 13 | CN32: 7 | CO32: 5 | CP32: Out | CQ32: 4 | CR32: 16 | CS32: 12 | CT32: 8 | CU32: 14 | CV32: 18 | CW32: 2 | CX32: 10 | CY32: 6 | CZ32: In
Y33: 131 | Z33: Quail Valley - EL DORADO (G) | AA33: GOLD | AB33: 5685 | AC33: 68.7/122 | AD33: RED | AE33: 0 | AF33: 70.7/123 | AG33: $55.21 | AH33: NC | AI33: 131Y | AJ33: Gold | AK33: 462 | AL33: 129 | AM33: 352 | AN33: 304 | AO33: 322 | AP33: 170 | AQ33: 522 | AR33: 155 | AS33: 339 | AT33: 2755 | AU33: 468 | AV33: 173 | AW33: 339 | AX33: 355 | AY33: 154 | AZ33: 350 | BA33: 320 | BB33: 321 | BC33: 450 | BD33: 2930 | BE33: 5685 | BG33: 131P | BH33: Par | BI33: 5 | BJ33: 3 | BK33: 4 | BL33: 4 | BM33: 4 | BN33: 3 | BO33: 5 | BP33: 3 | BQ33: 4 | BR33: 35 | BS33: 5 | BT33: 3 | BU33: 4 | BV33: 4 | BW33: 3 | BX33: 4 | BY33: 4 | BZ33: 4 | CA33: 5 | CB33: 36 | CC33: 71 | CE33: 131H | CF33: HDCP | CG33: 5 | CH33: 13 | CI33: 7 | CJ33: 9 | CK33: 1 | CL33: 17 | CM33: 3 | CN33: 15 | CO33: 11 | CP33: Out | CQ33: 8 | CR33: 18 | CS33: 14 | CT33: 6 | CU33: 16 | CV33: 4 | CW33: 10 | CX33: 2 | CY33: 12 | CZ33: In
Y34: 132 | Z34: Quail Valley - LA QUINTA (G) | AA34: GOLD | AB34: 5682 | AC34: 68.5/121 | AD34: RED | AE34: 0 | AF34: 72.5/130 | AG34: $55.21 | AH34: NC | AI34: 132Y | AJ34: Gold | AK34: 455 | AL34: 370 | AM34: 336 | AN34: 280 | AO34: 95 | AP34: 331 | AQ34: 465 | AR34: 152 | AS34: 360 | AT34: 2844 | AU34: 340 | AV34: 452 | AW34: 363 | AX34: 118 | AY34: 385 | AZ34: 364 | BA34: 337 | BB34: 131 | BC34: 348 | BD34: 2838 | BE34: 5682 | BG34: 132P | BH34: Par | BI34: 5 | BJ34: 4 | BK34: 4 | BL34: 4 | BM34: 3 | BN34: 4 | BO34: 5 | BP34: 3 | BQ34: 4 | BR34: 36 | BS34: 4 | BT34: 5 | BU34: 4 | BV34: 3 | BW34: 4 | BX34: 4 | BY34: 4 | BZ34: 3 | CA34: 4 | CB34: 35 | CC34: 71 | CE34: 132H | CF34: HDCP | CG34: 5 | CH34: 7 | CI34: 1 | CJ34: 3 | CK34: 15 | CL34: 13 | CM34: 9 | CN34: 17 | CO34: 11 | CP34: Out | CQ34: 14 | CR34: 10 | CS34: 12 | CT34: 18 | CU34: 8 | CV34: 2 | CW34: 4 | CX34: 16 | CY34: 6 | CZ34: In
Y35: 133 | Z35: RIVER PLANTATION (W) | AA35: WHITE | AB35: 5815 | AC35: 68.8/122 | AD35: RED | AE35: 0 | AF35: 69.3/120 | AG35: $42.21 | AH35: NC | AI35: 133Y | AJ35: WHITE | AK35: 310 | AL35: 144 | AM35: 393 | AN35: 358 | AO35: 317 | AP35: 453 | AQ35: 161 | AR35: 454 | AS35: 324 | AT35: 2914 | AU35: 289 | AV35: 150 | AW35: 315 | AX35: 481 | AY35: 373 | AZ35: 363 | BA35: 334 | BB35: 154 | BC35: 442 | BD35: 2901 | BE35: 5815 | BG35: 133P | BH35: Par | BI35: 4 | BJ35: 3 | BK35: 4 | BL35: 4 | BM35: 4 | BN35: 5 | BO35: 3 | BP35: 5 | BQ35: 4 | BR35: 36 | BS35: 4 | BT35: 3 | BU35: 4 | BV35: 5 | BW35: 4 | BX35: 4 | BY35: 4 | BZ35: 3 | CA35: 5 | CB35: 36 | CC35: 72 | CE35: 133H | CF35: HDCP | CG35: 7 | CH35: 15 | CI35: 3 | CJ35: 5 | CK35: 11 | CL35: 1 | CM35: 17 | CN35: 9 | CO35: 13 | CP35: Out | CQ35: 14 | CR35: 18 | CS35: 10 | CT35: 2 | CU35: 6 | CV35: 4 | CW35: 8 | CX35: 16 | CY35: 12 | CZ35: In
Y36: 134 | Z36: SIENNA PLANTATION (W) | AA36: WHITE | AB36: 6025 | AC36: 68.4/118 | AD36: GREEN | AE36: 0 | AF36: 65.8/112 | AG36: $55.00 | AH36: NC | AI36: 134Y | AJ36: White | AK36: 361 | AL36: 545 | AM36: 133 | AN36: 321 | AO36: 353 | AP36: 189 | AQ36: 396 | AR36: 463 | AS36: 277 | AT36: 3038 | AU36: 336 | AV36: 393 | AW36: 359 | AX36: 385 | AY36: 174 | AZ36: 441 | BA36: 266 | BB36: 156 | BC36: 477 | BD36: 2987 | BE36: 6025 | BG36: 134P | BH36: Par | BI36: 4 | BJ36: 5 | BK36: 3 | BL36: 4 | BM36: 4 | BN36: 3 | BO36: 4 | BP36: 5 | BQ36: 4 | BR36: 36 | BS36: 4 | BT36: 4 | BU36: 4 | BV36: 4 | BW36: 3 | BX36: 5 | BY36: 4 | BZ36: 3 | CA36: 5 | CB36: 36 | CC36: 72 | CE36: 134H | CF36: HDCP | CG36: 15 | CH36: 5 | CI36: 13 | CJ36: 17 | CK36: 1 | CL36: 3 | CM36: 9 | CN36: 11 | CO36: 7 | CP36: Out | CQ36: 10 | CR36: 4 | CS36: 16 | CT36: 2 | CU36: 6 | CV36: 14 | CW36: 18 | CX36: 12 | CY36: 8 | CZ36: In
Y37: 135 | Z37: STERLING COUNTRY CLUB (G) | AA37: GOLD | AB37: 5800 | AC37: 69.9/123 | AD37: RED | AE37: 0 | AF37: 71.9/125 | AG37: $85.00 | AH37: NC | AI37: 135Y | AJ37: GOLD | AK37: 340 | AL37: 339 | AM37: 119 | AN37: 358 | AO37: 118 | AP37: 443 | AQ37: 364 | AR37: 115 | AS37: 510 | AT37: 2706 | AU37: 339 | AV37: 356 | AW37: 343 | AX37: 124 | AY37: 481 | AZ37: 150 | BA37: 396 | BB37: 571 | BC37: 334 | BD37: 3094 | BE37: 5800 | BG37: 135P | BH37: Par | BI37: 4 | BJ37: 5 | BK37: 3 | BL37: 4 | BM37: 3 | BN37: 5 | BO37: 4 | BP37: 3 | BQ37: 5 | BR37: 36 | BS37: 4 | BT37: 4 | BU37: 4 | BV37: 3 | BW37: 5 | BX37: 3 | BY37: 4 | BZ37: 5 | CA37: 4 | CB37: 36 | CC37: 72 | CE37: 135H | CF37: HDCP | CG37: 1 | CH37: 7 | CI37: 9 | CJ37: 3 | CK37: 17 | CL37: 13 | CM37: 5 | CN37: 15 | CO37: 11 | CP37: Out | CQ37: 4 | CR37: 8 | CS37: 12 | CT37: 18 | CU37: 14 | CV37: 16 | CW37: 2 | CX37: 6 | CY37: 10 | CZ37: In
Y38: 136 | Z38: STONEBRIDGE (G) | AA38: GOLD | AB38: 5827 | AC38: 67.3/118 | AD38: W-RED | AE38: 0 | AF38: 70.5/123 | AG38: $32.48 | AH38: NC | AI38: 136Y | AJ38: GOLD | AK38: 340 | AL38: 339 | AM38: 119 | AN38: 360 | AO38: 524 | AP38: 140 | AQ38: 470 | AR38: 300 | AS38: 375 | AT38: 2967 | AU38: 475 | AV38: 310 | AW38: 381 | AX38: 305 | AY38: 158 | AZ38: 434 | BA38: 152 | BB38: 315 | BC38: 330 | BD38: 2860 | BE38: 5827 | BG38: 136P | BH38: Par | BI38: 4 | BJ38: 4 | BK38: 3 | BL38: 4 | BM38: 5 | BN38: 3 | BO38: 5 | BP38: 4 | BQ38: 4 | BR38: 36 | BS38: 5 | BT38: 4 | BU38: 4 | BV38: 4 | BW38: 3 | BX38: 5 | BY38: 3 | BZ38: 4 | CA38: 4 | CB38: 36 | CC38: 72 | CE38: 136H | CF38: HDCP | CG38: 6 | CH38: 13 | CI38: 8 | CJ38: 2 | CK38: 10 | CL38: 5 | CM38: 11 | CN38: 16 | CO38: 1 | CP38: Out | CQ38: 12 | CR38: 15 | CS38: 3 | CT38: 17 | CU38: 9 | CV38: 18 | CW38: 7 | CX38: 14 | CY38: 4 | CZ38: In
Y39: 137 | Z39: SWEETWATER CC (Pecan) | AA39: GOLD | AB39: 6050 | AC39: 69.9/127 | AD39: RED | AE39: 0 | AF39: 72.5/121 | AG39: $85.00 | AH39: NC | AI39: 137Y | AJ39: GOLD | AK39: 314 | AL39: 465 | AM39: 300 | AN39: 156 | AO39: 388 | AP39: 493 | AQ39: 142 | AR39: 373 | AS39: 407 | AT39: 3038 | AU39: 353 | AV39: 512 | AW39: 330 | AX39: 127 | AY39: 310 | AZ39: 455 | BA39: 178 | BB39: 382 | BC39: 365 | BD39: 3012 | BE39: 6050 | BG39: 137P | BH39: Par | BI39: 4 | BJ39: 5 | BK39: 4 | BL39: 3 | BM39: 4 | BN39: 5 | BO39: 3 | BP39: 4 | BQ39: 4 | BR39: 36 | BS39: 4 | BT39: 5 | BU39: 4 | BV39: 3 | BW39: 4 | BX39: 5 | BY39: 3 | BZ39: 4 | CA39: 4 | CB39: 36 | CC39: 72 | CE39: 137H | CF39: HDCP | CG39: 15 | CH39: 9 | CI39: 11 | CJ39: 13 | CK39: 3 | CL39: 1 | CM39: 17 | CN39: 7 | CO39: 5 | CP39: Out | CQ39: 14 | CR39: 2 | CS39: 12 | CT39: 16 | CU39: 10 | CV39: 8 | CW39: 18 | CX39: 4 | CY39: 6 | CZ39: In
Y40: 138 | Z40: TIMBER CREEK PINES/CREEKSIDE (G) | AA40: GOLD | AB40: 5488 | AC40: 65.8/116 | AD40: RED | AE40: 0 | AF40: 67.3/114 | AG40: $85.00 | AH40: TCPC | AI40: 138Y | AJ40: GOLD | AK40: 323 | AL40: 266 | AM40: 498 | AN40: 314 | AO40: 375 | AP40: 116 | AQ40: 343 | AR40: 130 | AS40: 500 | AT40: 2865 | AU40: 334 | AV40: 312 | AW40: 309 | AX40: 156 | AY40: 359 | AZ40: 273 | BA40: 118 | BB40: 343 | BC40: 419 | BD40: 2623 | BE40: 5488 | BG40: 138P | BH40: Par | BI40: 4 | BJ40: 4 | BK40: 5 | BL40: 4 | BM40: 4 | BN40: 3 | BO40: 4 | BP40: 3 | BQ40: 5 | BR40: 36 | BS40: 4 | BT40: 4 | BU40: 4 | BV40: 3 | BW40: 4 | BX40: 4 | BY40: 3 | BZ40: 4 | CA40: 5 | CB40: 35 | CC40: =SUM(BR40,CB40) -> 71 | CE40: 138H | CF40: HDCP | CG40: 17 | CH40: 15 | CI40: 13 | CJ40: 9 | CK40: 1 | CL40: 11 | CM40: 3 | CN40: 5 | CO40: 7 | CP40: Out | CQ40: 2 | CR40: 16 | CS40: 12 | CT40: 6 | CU40: 4 | CV40: 14 | CW40: 18 | CX40: 10 | CY40: 8 | CZ40: In
Y41: 139 | Z41: TIMBER CREEK PINES/CREEKSIDE (W) | AA41: WHITE | AB41: 5953 | AC41: 68.3/121 | AD41: RED | AE41: 0 | AF41: 67.3/114 | AG41: $85.00 | AH41: TCPC | AI41: 139Y | AJ41: White | AK41: 357 | AL41: 294 | AM41: 526 | AN41: 339 | AO41: 399 | AP41: 131 | AQ41: 361 | AR41: 155 | AS41: 513 | AT41: 3075 | AU41: 359 | AV41: 312 | AW41: 368 | AX41: 179 | AY41: 395 | AZ41: 300 | BA41: 123 | BB41: 379 | BC41: 463 | BD41: 2878 | BE41: 5953 | BG41: 139P | BH41: Par | BI41: 4 | BJ41: 4 | BK41: 5 | BL41: 4 | BM41: 4 | BN41: 3 | BO41: 4 | BP41: 3 | BQ41: 5 | BR41: 36 | BS41: 4 | BT41: 4 | BU41: 4 | BV41: 3 | BW41: 4 | BX41: 4 | BY41: 3 | BZ41: 4 | CA41: 5 | CB41: 35 | CC41: 71 | CE41: 139H | CF41: HDCP | CG41: 17 | CH41: 15 | CI41: 13 | CJ41: 9 | CK41: 1 | CL41: 11 | CM41: 3 | CN41: 5 | CO41: 7 | CP41: Out | CQ41: 2 | CR41: 16 | CS41: 12 | CT41: 6 | CU41: 4 | CV41: 14 | CW41: 18 | CX41: 10 | CY41: 8 | CZ41: In
Y42: 140 | Z42: TOUR 18 (Combo) | AA42: Combo | AB42: 6064 | AC42: 69.7/122 | AD42: White | AE42: 0 | AF42: 71.3/129 | AG42: $85.00 | AH42: NC | AI42: 140Y | AJ42: Combo | AK42: 315 | AL42: 500 | AM42: 335 | AN42: 306 | AO42: 370 | AP42: 145 | AQ42: 465 | AR42: 373 | AS42: 121 | AT42: 2930 | AU42: 518 | AV42: 175 | AW42: 365 | AX42: 553 | AY42: 305 | AZ42: 319 | BA42: 370 | BB42: 159 | BC42: 370 | BD42: 3134 | BE42: 6064 | BG42: 140P | BH42: Par | BI42: 4 | BJ42: 5 | BK42: 4 | BL42: 4 | BM42: 4 | BN42: 3 | BO42: 5 | BP42: 4 | BQ42: 3 | BR42: 36 | BS42: 5 | BT42: 3 | BU42: 4 | BV42: 5 | BW42: 4 | BX42: 4 | BY42: 4 | BZ42: 3 | CA42: 4 | CB42: 36 | CC42: 72 | CE42: 140H | CF42: HDCP | CG42: 3 | CH42: 5 | CI42: 17 | CJ42: 9 | CK42: 1 | CL42: 13 | CM42: 7 | CN42: 11 | CO42: 15 | CP42: Out | CQ42: 18 | CR42: 6 | CS42: 2 | CT42: 16 | CU42: 8 | CV42: 12 | CW42: 10 | CX42: 14 | CY42: 4 | CZ42: In
Y43: 141 | Z43: WALDEN ON LAKE CONROE (Gold) | AA43: GOLD | AB43: 5665 | AC43: 68.4/122 | AD43: RED | AE43: 0 | AF43: 70.7/122 | AG43: $85.00 | AH43: NC | AI43: 141Y | AJ43: GOLD | AK43: 426 | AL43: 433 | AM43: 285 | AN43: 144 | AO43: 326 | AP43: 130 | AQ43: 358 | AR43: 344 | AS43: 430 | AT43: 2876 | AU43: 472 | AV43: 509 | AW43: 112 | AX43: 244 | AY43: 143 | AZ43: 360 | BA43: 435 | BB43: 136 | BC43: 378 | BD43: 2789 | BE43: 5665 | BG43: 141P | BH43: Par | BI43: 4 | BJ43: 5 | BK43: 4 | BL43: 3 | BM43: 4 | BN43: 3 | BO43: 4 | BP43: 4 | BQ43: 5 | BR43: 36 | BS43: 5 | BT43: 5 | BU43: 3 | BV43: 4 | BW43: 3 | BX43: 4 | BY43: 5 | BZ43: 3 | CA43: 4 | CB43: 36 | CC43: 72 | CE43: 141H | CF43: HDCP | CG43: 5 | CH43: 9 | CI43: 13 | CJ43: 15 | CK43: 11 | CL43: 17 | CM43: 3 | CN43: 1 | CO43: 7 | CP43: Out | CQ43: 8 | CR43: 2 | CS43: 14 | CT43: 10 | CU43: 18 | CV43: 6 | CW43: 12 | CX43: 16 | CY43: 4 | CZ43: In
Y44: 142 | Z44: WEST FORK (W) | AA44: WHITE | AB44: 5650 | AC44: 67.4/116 | AD44: RED | AE44: 0 | AF44: 68.9/114 | AG44: $85.00 | AH44: NC | AI44: 142Y | AJ44: White | AK44: 327 | AL44: 341 | AM44: 130 | AN44: 263 | AO44: 434 | AP44: 342 | AQ44: 300 | AR44: 151 | AS44: 514 | AT44: 2802 | AU44: 292 | AV44: 344 | AW44: 445 | AX44: 323 | AY44: 147 | AZ44: 355 | BA44: 333 | BB44: 142 | BC44: 467 | BD44: 2848 | BE44: 5650 | BG44: 142P | BH44: Par | BI44: 4 | BJ44: 4 | BK44: 3 | BL44: 4 | BM44: 5 | BN44: 4 | BO44: 4 | BP44: 3 | BQ44: 5 | BR44: 36 | BS44: 4 | BT44: 4 | BU44: 5 | BV44: 4 | BW44: 3 | BX44: 4 | BY44: 4 | BZ44: 3 | CA44: 5 | CB44: 36 | CC44: 72 | CE44: 142H | CF44: HDCP | CG44: 11 | CH44: 7 | CI44: 17 | CJ44: 13 | CK44: 5 | CL44: 1 | CM44: 9 | CN44: 15 | CO44: 3 | CP44: Out | CQ44: 18 | CR44: 8 | CS44: 6 | CT44: 14 | CU44: 12 | CV44: 2 | CW44: 10 | CX44: 16 | CY44: 4 | CZ44: In
Y45: 143 | Z45: WILDCAT-HIGHLANDS (W) | AA45: WHITE | AB45: 5617 | AC45: 67.4/114 | AD45: GREEN | AE45: 0 | AF45: 68.3/111 | AG45: $85.00 | AH45: NC | AI45: 143Y | AJ45: White | AK45: 318 | AL45: 406 | AM45: 145 | AN45: 334 | AO45: 269 | AP45: 306 | AQ45: 334 | AR45: 143 | AS45: 477 | AT45: =SUM(AK45:AS45) -> 2732 | AU45: 106 | AV45: 335 | AW45: 511 | AX45: 318 | AY45: 272 | AZ45: 478 | BA45: 148 | BB45: 357 | BC45: 360 | BD45: =SUM(AU45:BC45) -> 2885 | BE45: =SUM(AT45,BD45) -> 5617 | BG45: 143P | BH45: Par | BI45: 4 | BJ45: 5 | BK45: 3 | BL45: 4 | BM45: 4 | BN45: 4 | BO45: 4 | BP45: 3 | BQ45: 5 | BR45: =SUM(BI45:BQ45) -> 36 | BS45: 3 | BT45: 4 | BU45: 5 | BV45: 4 | BW45: 4 | BX45: 5 | BY45: 3 | BZ45: 4 | CA45: 4 | CB45: =SUM(BS45:CA45) -> 36 | CC45: =SUM(BR45,CB45) -> 72 | CE45: 143H | CF45: HDCP | CG45: 15 | CH45: 5 | CI45: 7 | CJ45: 11 | CK45: 17 | CL45: 13 | CM45: 1 | CN45: 9 | CO45: 3 | CP45: Out | CQ45: 18 | CR45: 12 | CS45: 4 | CT45: 8 | CU45: 10 | CV45: 2 | CW45: 16 | CX45: 6 | CY45: 14 | CZ45: In
Y46: 144 | Z46: WILDCAT-LAKES (W) | AA46: WHITE | AB46: 5482 | AC46: 66.3/103 | AD46: GREEN | AE46: 0 | AF46: 68.7/111 | AG46: $85.00 | AH46: NC | AI46: 144Y | AJ46: White | AK46: 319 | AL46: 478 | AM46: 361 | AN46: 109 | AO46: 359 | AP46: 349 | AQ46: 452 | AR46: 111 | AS46: 256 | AT46: 2794 | AU46: 294 | AV46: 352 | AW46: 436 | AX46: 114 | AY46: 342 | AZ46: 270 | BA46: 295 | BB46: 127 | BC46: 458 | BD46: 2688 | BE46: 5482 | BG46: 144P | BH46: Par | BI46: 4 | BJ46: 5 | BK46: 4 | BL46: 3 | BM46: 4 | BN46: 4 | BO46: 5 | BP46: 3 | BQ46: 4 | BR46: 36 | BS46: 4 | BT46: 4 | BU46: 5 | BV46: 3 | BW46: 4 | BX46: 4 | BY46: 4 | BZ46: 3 | CA46: 5 | CB46: 36 | CC46: 72 | CE46: 144H | CF46: HDCP | CG46: 9 | CH46: 3 | CI46: 11 | CJ46: 17 | CK46: 7 | CL46: 13 | CM46: 1 | CN46: 15 | CO46: 5 | CP46: Out | CQ46: 4 | CR46: 6 | CS46: 2 | CT46: 18 | CU46: 10 | CV46: 14 | CW46: 12 | CX46: 16 | CY46: 8 | CZ46: In
Y47: 145 | Z47: WILDERNESS (Grn) | AA47: GREEN | AB47: 6151 | AC47: 69.8/121 | AD47: ORANGE | AE47: 0 | AF47: 71.6/126 | AG47: $45.00 | AH47: NC | AI47: 145Y | AJ47: Green | AK47: 391 | AL47: 492 | AM47: 332 | AN47: 134 | AO47: 349 | AP47: 352 | AQ47: 496 | AR47: 160 | AS47: 434 | AT47: 3140 | AU47: 466 | AV47: 270 | AW47: 314 | AX47: 110 | AY47: 342 | AZ47: 525 | BA47: 176 | BB47: 384 | BC47: 424 | BD47: 3011 | BE47: 6151 | BG47: 145P | BH47: Par | BI47: 4 | BJ47: 5 | BK47: 4 | BL47: 3 | BM47: 4 | BN47: 4 | BO47: 5 | BP47: 3 | BQ47: 4 | BR47: 36 | BS47: 5 | BT47: 4 | BU47: 4 | BV47: 3 | BW47: 4 | BX47: 5 | BY47: 3 | BZ47: 4 | CA47: 4 | CB47: 36 | CC47: 72 | CE47: 145H | CF47: HDCP | CG47: 5 | CH47: 17 | CI47: 13 | CJ47: 11 | CK47: 9 | CL47: 7 | CM47: 15 | CN47: 3 | CO47: 1 | CP47: Out | CQ47: 10 | CR47: 16 | CS47: 8 | CT47: 18 | CU47: 14 | CV47: 6 | CW47: 4 | CX47: 12 | CY47: 2 | CZ47: In
Y48: 146 | Z48: WINDROSE (G) | AA48: GOLD | AB48: 6069 | AC48: 69.4/122 | AD48: RED | AE48: 0 | AF48: 71.2/120 | AG48: $43.00 | AH48: NC | AI48: 146Y | AJ48: GOLD | AK48: 334 | AL48: 120 | AM48: 353 | AN48: 532 | AO48: 332 | AP48: 155 | AQ48: 361 | AR48: 392 | AS48: 475 | AT48: 3054 | AU48: 366 | AV48: 153 | AW48: 472 | AX48: 394 | AY48: 450 | AZ48: 375 | BA48: 116 | BB48: 301 | BC48: 388 | BD48: 3015 | BE48: 6069 | BG48: 146P | BH48: Par | BI48: 4 | BJ48: 3 | BK48: 4 | BL48: 5 | BM48: 4 | BN48: 3 | BO48: 4 | BP48: 4 | BQ48: 5 | BR48: 36 | BS48: 4 | BT48: 3 | BU48: 5 | BV48: 4 | BW48: 5 | BX48: 4 | BY48: 3 | BZ48: 4 | CA48: 4 | CB48: 36 | CC48: 72 | CE48: 146H | CF48: HDCP | CG48: 17 | CH48: 15 | CI48: 7 | CJ48: 3 | CK48: 11 | CL48: 5 | CM48: 9 | CN48: 1 | CO48: 13 | CP48: Out | CQ48: 6 | CR48: 18 | CS48: 12 | CT48: 4 | CU48: 10 | CV48: 8 | CW48: 16 | CX48: 14 | CY48: 2 | CZ48: In
